Cogmind - Beta 10 --- EXPLORER MODE // 2020.09.20 @ 18:33:03 Player: Darlorth Result: Self-destructed Performance ------------- Evolutions (4) 2000 Regions Visited (12) 2400 Robots Destroyed (212) 1060 Value Destroyed (8663) 8663 Prototype IDs (12) 240 Alien Tech Used (0) 0 Bonus (2163) 2163 TOTAL SCORE: 16526 Bonus ------- High Alert Combat Kills 408 Follower Combat Kills 355 Entered Garrisons 400 Used RIF Installer 1000 Cogmind --------- Core Integrity 441/850 Matter 300/300 Energy 12/100 System Corruption 0% Temperature Cool (9) Movement Treading (160) Location -6/Factory Parts ------- > --- POWER (2) -------- (None) > --- PROPULSION (4) --- Medium Treads Medium Treads Medium Treads > --- UTILITY (8) ------ Large Storage Unit Large Storage Unit Large Storage Unit Enhanced Optical Array Advanced Signal Interpreter Long-range Terrain Scanner Advanced Targeting Computer Layered Medium Armor Plating > --- WEAPON (2) ------- Heavy Ion Cannon Makeshift Sword > --- INVENTORY (22) --- Improved Heat Sink Advanced Heat Sink Large Storage Unit Compact Matter Pod (150) Improved Signal Interpreter Target Analyzer System Backup Module Proton Missile Launcher Missile Launcher Remote Datajack Peak State ------------ > --- POWER ------------ Light Fission Core Light Fission Core > --- PROPULSION ------- Medium Treads Medium Treads Medium Treads Medium Treads > --- UTILITY ---------- Improved Heat Sink Advanced Heat Sink Large Storage Unit Large Storage Unit Particle Charger Improved Medium Armor Plating Relay Coupler [NC] System Backup Module > --- WEAPON ----------- Heavy Ion Cannon Heavy Ion Cannon > --- INVENTORY -------- Micro Nuclear Core Improved Heat Sink Large Storage Unit Compact Matter Pod Long-range Terrain Scanner Advanced Targeting Computer Improved Light Armor Plating Plasma Rifle Heavy Ion Cannon Heavy Ion Cannon Cooled Particle Cannon Shock Bomb Launcher Proton Missile Launcher Missile Launcher Remote Datajack Makeshift Sword [Rating: 61] Favorites ----------- Power Light Nuclear Core Engine Reinforced Deuterium Engine Power Core Light Nuclear Core Reactor Cold Fusion Reactor Propulsion Advanced Treads Treads Advanced Treads Leg Aluminum Leg Wheel Wheel Hover Unit Improved Gravmag System Utility Large Storage Unit Device Improved Heat Sink Storage Large Storage Unit Processor Advanced Targeting Computer Hackware Relay Coupler [NC] Protection Improved Medium Armor Plating Weapon Heavy Ion Cannon Energy Gun Gatling Laser Energy Cannon Heavy Ion Cannon Ballistic Gun Light Assault Rifle Ballistic Cannon Bore Cannon Launcher EMP Blaster Special Weapon Remote Datajack Impact Weapon Hammer Slashing Weapon Scythe Build | -11 -10 -10 -10 -9 -8 -8 -8 -8 -7 -7 -7 -6 ------- Run | Scr Mat Min Exi Min Mat Gar Mat Gar Fac Low Low Fac Slots Evolved 9 | . 1 . . . 4 . . . 2 . . 2 Power 1 | . . . . . . . . . . . . 1 Propulsion 2 | . . . . . 2 . . . . . . . Utility 6 | . 1 . . . 2 . . . 2 . . 1 Weapon . | . . . . . . . . . . . . . Parts Attached 173 | 7 6 . . 23 4 19 36 1 34 6 . 37 Power 16 | 1 1 . . 3 . 2 2 . 1 1 . 5 Engine 5 | 1 . . . 2 . . . . 1 . . 1 Core 10 | . 1 . . 1 . 2 2 . . 1 . 3 Reactor 1 | . . . . . . . . . . . . 1 Propulsion 43 | 2 . . . 6 2 3 16 . 1 3 . 10 Treads 19 | 2 . . . . . . 9 . 1 . . 7 Leg 18 | . . . . 3 2 3 6 . . 3 . 1 Wheel 4 | . . . . 3 . . 1 . . . . . Hover 2 | . . . . . . . . . . . . 2 Flight . | . . . . . . . . . . . . . Utility 45 | 2 3 . . 4 2 4 4 . 14 1 . 11 Device 13 | . 1 . . . 1 1 1 . 5 . . 4 Storage 14 | 1 2 . . 3 1 2 1 . 3 . . 1 Processor 4 | 1 . . . . . . . . . . . 3 Hackware 3 | . . . . . . . 1 . 2 . . . Protection 11 | . . . . 1 . 1 1 . 4 1 . 3 Artifact . | . . . . . . . . . . . . . Weapon 69 | 2 2 . . 10 . 10 14 1 18 1 . 11 Energy Gun 17 | . . . . 1 . 6 5 . 2 . . 3 Energy Cannon 17 | . . . . . . . 1 . 11 1 . 4 Ballistic Gun 5 | 2 1 . . 2 . . . . . . . . Ballistic Cannon 4 | . . . . 3 . 1 . . . . . . Launcher 15 | . . . . 3 . 3 5 . 1 . . 3 Special Weapon 3 | . . . . . . . . . 3 . . . Impact Weapon 2 | . 1 . . 1 . . . . . . . . Slashing Weapon 6 | . . . . . . . 3 1 1 . . 1 Piercing Weapon . | . . . . . . . . . . . . . Special Melee Weapon . | . . . . . . . . . . . . . Unidentified Prototypes 1 | . . . . . . . 1 . . . . . Parts Lost 50 | . . . . 8 . 1 11 1 6 2 . 21 Power 8 | . . . . 2 . . 1 1 . . . 4 Propulsion 15 | . . . . 2 . . 5 . 2 1 . 5 Utility 13 | . . . . 2 . 1 . . 3 1 . 6 Weapon 14 | . . . . 2 . . 5 . 1 . . 6 Highest Loss Streak 5 | . . . . 5 . 1 2 1 2 2 . 5 Average Slot Usage (%) 90 | . 100 100 100 89 90 99 97 95 91 85 100 82 Engine 2 | . 7 . . 3 8 . . . 6 . . . Core 6 | . 4 12 12 6 . 7 7 3 . 6 7 7 Treads 14 | . 25 25 25 10 . . 8 33 26 7 7 11 Leg 7 | . . . . 7 33 33 23 . . 7 21 2 Device 8 | . . . . . 4 8 7 8 12 21 21 9 Storage 19 | . 24 25 25 24 18 25 19 16 18 14 14 17 Processor 4 | . 12 12 12 4 . . . . . . . 8 Hackware 2 | . . . . . . . 4 8 4 7 7 1 Protection 5 | . . . . 3 8 7 8 8 9 6 7 2 Energy Gun 3 | . . . . 6 8 12 5 4 3 . . 3 Energy Cannon 5 | . . . . . . . 1 8 7 14 14 7 Ballistic Gun 3 | . 24 25 25 6 . . . . . . . . Launcher 1 | . . . . 2 . 1 4 . . . . 1 Naked Turns . | . . . . . . . . . . . . . Heaviest Build 88 | 16 19 19 19 28 30 34 43 42 73 73 63 88 Greatest Support 112 | 40 40 40 40 40 40 45 88 88 88 45 45 112 Greatest Overweight (x) 26 | . . . . 6 . . 3 . 1 4 1 26 Average Overweight (x) . | . . . . . . . . . . 2 1 2 Largest Inventory Capacity 22 | 8 8 8 8 8 8 8 10 10 16 16 16 22 Average Capacity 14 | 6 8 8 8 8 8 8 9 10 16 16 16 21 Most Carried 21 | 7 8 8 8 8 6 8 10 10 16 16 16 21 Average Carried 11 | 3 7 8 8 7 5 7 8 9 14 15 16 14 Final Capacity 22 | 8 8 8 8 8 8 8 10 10 16 16 16 22 Final Carried 16 | 7 8 8 8 7 5 8 9 10 16 16 16 10 Class Distribution -------------------- 63% | Hacker-Mutant 16% | Hauler-Mutant 11% | Scavenger-Mutant 7% | Hauler-Skirmisher Dominant Class ---------------- Hacker-Mutant | -10/Materials Hacker-Mutant | -10/Mines Hacker-Mutant | -10/Exiles Hacker-Mutant | -9/Mines Hacker-Mutant | -8/Materials Scavenger-Mutant | -8/Garrison Hacker-Mutant | -8/Materials Hacker-Mutant | -8/Garrison Hacker-Mutant | -7/Factory Hacker-Mutant | -7/Lower Caves Scavenger-Mutant | -7/Lower Caves Hauler-Mutant | -6/Factory Resources | -11 -10 -10 -10 -9 -8 -8 -8 -8 -7 -7 -7 -6 ----------- Run | Scr Mat Min Exi Min Mat Gar Mat Gar Fac Low Low Fac Matter Collected 3222 | 206 330 . . 656 . 420 508 10 395 55 . 642 Remotely . | . . . . . . . . . . . . . Salvage Created 8628 | . 318 . . 415 . 791 2418 331 1517 480 . 2358 Parts 399 | . 31 . . 31 . 37 107 10 64 24 . 95 Haulers Intercepted 1 | . . . . . . . . . . . . 1 Recyclers Shooed 4 | . . . . . . . . . . . . 4 Parts Field Recycled . | . . . . . . . . . . . . . Retrieved Matter . | . . . . . . . . . . . . . Parts Self-Destructed . | . . . . . . . . . . . . . Prevented . | . . . . . . . . . . . . . Kills | -11 -10 -10 -10 -9 -8 -8 -8 -8 -7 -7 -7 -6 ------- Run | Scr Mat Min Exi Min Mat Gar Mat Gar Fac Low Low Fac Combat Hostiles Destroyed 181 | . 11 . . 21 . 19 44 6 27 10 . 43 Melee 8 | . . . . . . . 4 1 2 . . 1 Guns 59 | . 11 . . 4 . 8 23 2 5 . . 6 Cannons 68 | . . . . 1 . 8 2 2 19 10 . 26 AOE 35 | . . . . 15 . 1 10 . . . . 9 Classes Destroyed 18 | . 3 . . 4 . 2 4 2 2 . . 1 Worker 5 | . . . . . . . 5 . . . . . Builder 9 | . . . . 4 . . 4 . . . . 1 Tunneler 1 | . . . . 1 . . . . . . . . Hauler 1 | . . . . . . . . . . . . 1 Recycler 4 | . . . . 1 . . 1 . 2 . . . Mechanic 1 | . 1 . . . . . . . . . . . Operator 3 | . . . . . . . 2 . 1 . . . Watcher 7 | . . . . . . . 1 . 2 . . 4 Swarmer 25 | . 6 . . 3 . 3 2 . 3 3 . 5 Grunt 87 | . 5 . . 6 . 11 32 2 7 4 . 20 Brawler 2 | . . . . . . . . 1 1 . . . Duelist 2 | . . . . . . . 1 1 . . . . Sentry 22 | . . . . . . 4 9 1 3 1 . 4 Demolisher 1 | . . . . . . . . . 1 . . . Hunter 16 | . . . . . . . . 1 7 2 . 6 Programmer 13 | . . . . . . . . . 5 . . 8 Behemoth 1 | . . . . . . 1 . . . . . . Assembled 12 | . . . . 12 . . . . . . . . Best Kill Streak 7 | . 3 . . 7 . 3 5 2 4 6 . 5 Combat Bots Only 7 | . 2 . . 7 . 3 4 2 4 6 . 5 Max Kills in Single Turn 4 | . 1 . . 4 . 2 3 1 1 1 . 2 Gunslinging 1 | . . . . . . 1 1 . . . . . Exploded 2 | . . . . 2 . 1 2 . . . . 1 Melee 1 | . . . . . . . 1 1 1 . . 1 Uniques/NPCs Destroyed . | . . . . . . . . . . . . . Combat | -11 -10 -10 -10 -9 -8 -8 -8 -8 -7 -7 -7 -6 -------- Run | Scr Mat Min Exi Min Mat Gar Mat Gar Fac Low Low Fac Damage Taken 8267 | . 213 . . 861 . 678 1228 284 1571 406 . 3026 Core 896 | . 45 . . 93 . 77 57 36 142 37 . 409 Absorbed by Shields 3 | . . . . . . . . . 3 . . . Core Remaining (%) 71 | 100 . . . 44 . . . 69 . . 74 . Volleys Fired 489 | . 32 . . 50 . 51 94 26 89 17 . 130 Largest 2 | . 2 . . 2 . 2 2 2 2 2 . 2 Hottest 160 | . 40 . . 97 . 160 160 126 143 130 . 144 Shots Fired 839 | . 61 . . 79 . 97 142 52 155 34 . 219 Gun 393 | . 61 . . 45 . 67 101 26 50 . . 43 Cannon 338 | . . . . 16 . 25 7 26 91 34 . 139 Launcher 95 | . . . . 18 . 5 34 . 1 . . 37 Special 13 | . . . . . . . . . 13 . . . Kinetic 129 | . 61 . . 43 . 25 . . . . . . Thermal 525 | . . . . . . 42 101 26 140 34 . 182 Explosive 45 | . . . . 18 . 5 3 . . . . 19 Electromagnetic 127 | . . . . 18 . 25 38 26 2 . . 18 Robot Hit Streak 55 | . 28 . . 53 . 26 55 20 46 41 . 54 Robot Miss Streak 3 | . 1 . . 3 . 2 3 1 1 1 . 2 Penetration Max 1 | . . . . 1 . . . . . . . . Secondary Targets 3 | . 1 . . . . 1 1 . . . . . Max Gunslinging Chain 1 | . 1 . . . . 1 1 . . . . . Shots Hit Robots 703 | . 49 . . 60 . 66 142 47 135 28 . 176 Core Hits 386 | . 21 . . 52 . 32 112 12 49 12 . 96 Critical Hits 19 | . . . . 5 . 11 1 . 1 . . 1 Critical Kills 9 | . . . . 1 . 6 1 . 1 . . . Critical Parts Destroyed 10 | . . . . 4 . 5 . . . . . 1 Melee Attacks 45 | . 4 . . 12 . . 15 2 5 . . 7 Impact 16 | . 4 . . 12 . . . . . . . . Slashing 29 | . . . . . . . 15 2 5 . . 7 Piercing . | . . . . . . . . . . . . . Sneak Attacks 5 | . . . . . . . 5 . . . . . Combat Hostiles . | . . . . . . . . . . . . . Follow-up Attacks . | . . . . . . . . . . . . . Damage Inflicted 19130 | . 548 . . 1851 . 1528 4529 918 2982 825 . 5949 Guns 6043 | . 477 . . 395 . 987 2082 377 824 . . 901 Cannons 7266 | . . . . 203 . 352 122 478 2007 825 . 3279 Explosions 4425 | . . . . 1152 . 189 1552 . 6 . . 1526 Melee 1393 | . 71 . . 101 . . 770 63 145 . . 243 Ramming 3 | . . . . . . . 3 . . . . . Kinetic 1231 | . 477 . . 402 . 352 . . . . . . Thermal 11612 | . . . . . . 965 2434 377 2831 825 . 4180 Explosive 2286 | . . . . 1152 . . 250 . . . . 884 Electromagnetic 2605 | . . . . 196 . 211 1072 478 6 . . 642 Impact 172 | . 71 . . 101 . . . . . . . . Slashing 1221 | . . . . . . . 770 63 145 . . 243 Piercing . | . . . . . . . . . . . . . Highest Corruption 7 | . . . . 7 . . . . 3 . . . Average Corruption 3 | . . . . 4 . . . . 1 . . . Corruption Purged 4 | . . . . . . . . . 4 . . . Effects 32 | . . . . 28 . . . . 4 . . . Message Errors 10 | . . . . 8 . . . . 2 . . . Matter Fused 5 | . . . . 5 . . . . . . . . Heat Flow Errors 4 | . . . . 4 . . . . . . . . Energy Discharges 3 | . . . . 3 . . . . . . . . Data Loss (minor) 3 | . . . . 2 . . . . 1 . . . Data Loss (major) 2 | . . . . 2 . . . . . . . . Misfires 3 | . . . . 3 . . . . . . . . Targeting Errors 1 | . . . . 1 . . . . . . . . Weapon Failures 1 | . . . . . . . . . 1 . . . Overload Shots . | . . . . . . . . . . . . . Overflow Damage 419 | . . . . 97 . . 84 32 28 26 . 152 Projectiles 173 | . . . . . . . . 32 28 26 . 87 Explosions 198 | . . . . 85 . . 48 . . . . 65 Melee 48 | . . . . 12 . . 36 . . . . . Knockbacks 7 | . . . . 5 . 2 . . . . . . Impact 1 | . . . . 1 . . . . . . . . Kinetic 5 | . . . . 3 . 2 . . . . . . Secondary 1 | . . . . 1 . . . . . . . . Self-Inflicted Damage 338 | . . . . 81 . 31 153 . 5 . . 68 Shots 23 | . . . . 5 . 1 13 . 1 . . 3 Rammed 1 | . . . . . . . 1 . . . . . Targets Rammed 1 | . . . . . . . 1 . . . . . Kicked . | . . . . . . . . . . . . . Crushed . | . . . . . . . . . . . . . Highest Temperature 412 | . 20 . . 388 . 194 321 67 412 141 . 361 Average Temperature 75 | . 5 . . 102 . 71 50 28 81 47 . 96 Received Heat Transfer 3278 | . 135 . . 206 . 357 855 117 330 90 . 1188 Effects 5 | . . . . 2 . . . . 1 . . 2 Shutdowns 2 | . . . . 1 . . . . 1 . . . Interference 1 | . . . . . . . . . . . . 1 Matter Decay 1 | . . . . . . . . . . . . 1 Damage (minor) 1 | . . . . 1 . . . . . . . . Siege Activations . | . . . . . . . . . . . . . Robots Corrupted 6 | . . . . . . . 5 1 . . . . Combat Hostiles 6 | . . . . . . . 5 1 . . . . Parts Fried 12 | . . . . . . . 6 3 . . . 3 Impact Corruptions 1 | . . . . 1 . . . . . . . . Robots Melted 4 | . . . . . . 2 . . 1 . . 1 Combat Hostiles 4 | . . . . . . 2 . . 1 . . 1 Parts Melted 43 | . . . . . . 5 3 . 11 2 . 22 Heat Transferred 19078 | . . . . . . 1934 5082 814 4261 999 . 5988 Parts Sabotaged . | . . . . . . . . . . . . . Parts Stolen . | . . . . . . . . . . . . . Parts Stripped . | . . . . . . . . . . . . . Power Chain Reactions 6 | . . . . . . 2 4 . . . . . Missiles Intercepted . | . . . . . . . . . . . . . Alert | -11 -10 -10 -10 -9 -8 -8 -8 -8 -7 -7 -7 -6 ------- Run | Scr Mat Min Exi Min Mat Gar Mat Gar Fac Low Low Fac Peak Influence 783 | . 175 48 . 140 13 783 732 219 296 . . 238 Initial 279 | . . 48 . . 13 6 279 34 85 . . . Average 125 | . 79 48 . 26 13 434 309 146 85 . . 47 Maximum Alert Level 3 | . . . . . . 3 3 1 1 . . 1 Low Security (%) 80 | 100 100 100 . 100 100 21 40 55 90 . . 96 Level 1 9 | . . . . . . 11 25 44 9 . . 3 Level 2 8 | . . . . . . 52 33 . . . . . Level 3 1 | . . . . . . 13 1 . . . . . Level 4 . | . . . . . . . . . . . . . Level 5 . | . . . . . . . . . . . . . High Security . | . . . . . . . . . . . . . Max Security . | . . . . . . . . . . . . . Squads Dispatched 43 | . 2 . . . 1 . 11 . 12 . . 17 Investigation 20 | . 2 . . . 1 . 5 . 4 . . 8 Extermination 11 | . . . . . . . . . 5 . . 6 Reinforcement 9 | . . . . . . . 3 . 3 . . 3 Assault . | . . . . . . . . . . . . . Garrison 3 | . . . . . . . 3 . . . . . Intercept . | . . . . . . . . . . . . . Construction Impeded 3 | . . . . . . . 1 . . . . 2 Haulers Reinforced 2 | . . . . . . . . . 1 . . 1 Stealth | -11 -10 -10 -10 -9 -8 -8 -8 -8 -7 -7 -7 -6 --------- Run | Scr Mat Min Exi Min Mat Gar Mat Gar Fac Low Low Fac Distress Signals 17 | . 3 . . 1 . . 7 . 2 . . 4 Communications Jammed . | . . . . . . . . . . . . . Distress Signals . | . . . . . . . . . . . . . Times Spotted 274 | . 23 . . 33 . 21 70 10 49 10 . 58 Peak Tracking Total 7 | . 5 . . 7 . 3 5 3 5 7 . 5 Tactical Retreats 24 | . 3 . . 8 . 2 5 3 3 . . . Traps | -11 -10 -10 -10 -9 -8 -8 -8 -8 -7 -7 -7 -6 ------- Run | Scr Mat Min Exi Min Mat Gar Mat Gar Fac Low Low Fac Traps Triggered 14 | . . . . . . 6 4 . 3 . . 1 Indirectly 3 | . . . . . . . 3 . . . . . Trap Hack Attempts . | . . . . . . . . . . . . . Triggered . | . . . . . . . . . . . . . Disarmed . | . . . . . . . . . . . . . Reprogrammed . | . . . . . . . . . . . . . Reused . | . . . . . . . . . . . . . Traps Extracted . | . . . . . . . . . . . . . Installed . | . . . . . . . . . . . . . Triggered 1 | . . . . . . . 1 . . . . . Machines | -11 -10 -10 -10 -9 -8 -8 -8 -8 -7 -7 -7 -6 ---------- Run | Scr Mat Min Exi Min Mat Gar Mat Gar Fac Low Low Fac Machines Disabled 11 | . . . . . . 2 4 1 . . . 4 Max in Single Turn 2 | . . . . . . 1 2 1 . . . 1 Garrison Relay 3 | . . . . . . 2 . 1 . . . . Machines Sabotaged . | . . . . . . . . . . . . . Garrisons Compromised 1 | . . . . . . . . . 1 . . . Overloaded Fab Kills . | . . . . . . . . . . . . . Fab Network Shutdowns . | . . . . . . . . . . . . . Hacking | -11 -10 -10 -10 -9 -8 -8 -8 -8 -7 -7 -7 -6 --------- Run | Scr Mat Min Exi Min Mat Gar Mat Gar Fac Low Low Fac Machines Accessed 35 | . 2 . 4 . 1 . 11 . 7 2 . 8 Terminals 18 | . 2 . . . . . 8 . 3 . . 5 Fabricators 1 | . . . . . . . . . 1 . . . Repair Stations . | . . . . . . . . . . . . . Recycling Units 3 | . . . . . . . 1 . 2 . . . Scanalyzers 5 | . . . . . . . 1 . 1 . . 3 Garrison Access 2 | . . . . . 1 . 1 . . . . . Total Hacks 151 | . 7 . 49 . 3 . 44 . 22 2 . 24 Successful 129 | . 7 . 49 . 2 . 38 . 16 2 . 15 Failed 22 | . . . . . 1 . 6 . 6 . . 9 Catastrophic . | . . . . . . . . . . . . . Database Lockouts . | . . . . . . . . . . . . . Manual 40 | . 3 . . . . . 27 . 4 . . 6 Terminals 69 | . 7 . . . . . 38 . 10 . . 14 Fabricators 4 | . . . . . . . . . 4 . . . Repair Stations . | . . . . . . . . . . . . . Recycling Units 7 | . . . . . . . 2 . 5 . . . Scanalyzers 16 | . . . . . . . 3 . 3 . . 10 Garrison Access 4 | . . . . . 3 . 1 . . . . . Terminal Hacks 89 | . 4 . 49 . . . 22 . 6 2 . 6 Record 62 | . 4 . 49 . . . 4 . 2 1 . 2 Part Schematic 4 | . . . . . . . 1 . 2 . . 1 Prototype ID Bank 5 | . . . . . . . 4 . 1 . . . Open Door 1 | . . . . . . . . . . 1 . . Branch Access Points 2 | . . . . . . . 2 . . . . . Emergency Access Points 1 | . . . . . . . 1 . . . . . Terminal Index 1 | . . . . . . . 1 . . . . . Fabricator Index 1 | . . . . . . . 1 . . . . . Scanalyzer Index 1 | . . . . . . . 1 . . . . . Alert Level 2 | . . . . . . . 1 . . . . 1 Unreport Threat 3 | . . . . . . . 2 . . . . 1 Locate Traps 1 | . . . . . . . 1 . . . . . Recall Investigation 1 | . . . . . . . 1 . . . . . Hauler Manifests 2 | . . . . . . . 1 . . . . 1 Zone Layout 2 | . . . . . . . 1 . 1 . . . Fabricator Hacks 1 | . . . . . . . . . 1 . . . Load Schematic 1 | . . . . . . . . . 1 . . . Repair Station Hacks . | . . . . . . . . . . . . . Recycling Unit Hacks 5 | . . . . . . . 1 . 4 . . . Report Inventory 3 | . . . . . . . 1 . 2 . . . Retrieve Components 2 | . . . . . . . . . 2 . . . Scanalyzer 13 | . . . . . . . 3 . 3 . . 7 Insert Component 8 | . . . . . . . 2 . 1 . . 5 Analyze 5 | . . . . . . . 1 . 2 . . 2 Garrison Access Hacks 3 | . . . . . 2 . 1 . . . . . Unlock Access 2 | . . . . . 1 . 1 . . . . . Coupler Status 1 | . . . . . 1 . . . . . . . Unauthorized Hacks 18 | . 3 . . . . . 11 . 2 . . 2 Terminals 17 | . 3 . . . . . 10 . 2 . . 2 Track 4 | . 1 . . . . . 3 . . . . . Assimilate 2 | . 1 . . . . . . . 1 . . . Botnet 11 | . 1 . . . . . 7 . 1 . . 2 Fabricators . | . . . . . . . . . . . . . Repair Stations . | . . . . . . . . . . . . . Recycling Units 1 | . . . . . . . 1 . . . . . Tunnel 1 | . . . . . . . 1 . . . . . Scanalyzers . | . . . . . . . . . . . . . Garrison Access . | . . . . . . . . . . . . . Data Cores Recovered . | . . . . . . . . . . . . . Used . | . . . . . . . . . . . . . Hacking Detections 22 | . 2 . . . 1 . 5 . 6 . . 8 Full Trace Events 19 | . 2 . . . 1 . 5 . 4 . . 7 Feedback Events . | . . . . . . . . . . . . . Feedback Blocked . | . . . . . . . . . . . . . Robot Schematics Acquired . | . . . . . . . . . . . . . Robots Built . | . . . . . . . . . . . . . Matter . | . . . . . . . . . . . . . Time . | . . . . . . . . . . . . . Total Robot Build Rating . | . . . . . . . . . . . . . Part Schematics Acquired 7 | . . . . . . . 2 . 3 . . 2 Parts Built . | . . . . . . . . . . . . . Matter . | . . . . . . . . . . . . . Time . | . . . . . . . . . . . . . Total Part Build Rating . | . . . . . . . . . . . . . Parts Repaired . | . . . . . . . . . . . . . Time . | . . . . . . . . . . . . . Parts Recycled . | . . . . . . . . . . . . . Recycled Matter . | . . . . . . . . . . . . . Retrieved Matter . | . . . . . . . . . . . . . Retrieved Components 11 | . . . . . . . . . 11 . . . Parts Scanalyzed 4 | . . . . . . . 1 . 1 . . 2 Part Schematics Acquired 3 | . . . . . . . 1 . 1 . . 1 Parts Damaged . | . . . . . . . . . . . . . Bothacking | -11 -10 -10 -10 -9 -8 -8 -8 -8 -7 -7 -7 -6 ------------ Run | Scr Mat Min Exi Min Mat Gar Mat Gar Fac Low Low Fac Used RIF Installer 2 | . . . . . . 1 . 1 . . . . Zone Cloak 1 | . . . . . . . . 1 . . . . Robots Hacked 5 | . . . . . . . . . 5 . . . Non-combat 2 | . . . . . . . . . 2 . . . Combat 3 | . . . . . . . . . 3 . . . Robot Hacks Applied 9 | . . . . . . . . . 9 . . . parse_system 1 | . . . . . . . . . 1 . . . start_evac 1 | . . . . . . . . . 1 . . . check_alert 1 | . . . . . . . . . 1 . . . find_terminals 1 | . . . . . . . . . 1 . . . locate_traps 2 | . . . . . . . . . 2 . . . disarm_traps 1 | . . . . . . . . . 1 . . . formatsys_high 2 | . . . . . . . . . 2 . . . Relay Couplers Released 10 | . . . . . . 7 . 3 . . . . Machine Destruction 10 | . . . . . . 7 . 3 . . . . Attached 2 | . . . . . . . . . 2 . . . Robots Rewired . | . . . . . . . . . . . . . Allies Hacked . | . . . . . . . . . . . . . Hacks Repelled . | . . . . . . . . . . . . . Allies | -11 -10 -10 -10 -9 -8 -8 -8 -8 -7 -7 -7 -6 -------- Run | Scr Mat Min Exi Min Mat Gar Mat Gar Fac Low Low Fac Total Allies 17 | . . . . . . . . . 17 . . . Largest Group 6 | . . . . . . . . . 6 . . . Highest-Rated Group 158 | . . . . . . . . . 158 . . . Highest-Rated Ally 32 | . . . . . . . . . 32 . . . Total Orders . | . . . . . . . . . . . . . Ally Attacks 101 | . . . . . . . . . 101 . . . Total Damage 1492 | . . . . . . . . . 1492 . . . Kills 17 | . . . . . . . . . 17 . . . Allies Corrupted . | . . . . . . . . . . . . . Allies Melted . | . . . . . . . . . . . . . Intel | -11 -10 -10 -10 -9 -8 -8 -8 -8 -7 -7 -7 -6 ------- Run | Scr Mat Min Exi Min Mat Gar Mat Gar Fac Low Low Fac Robot Analysis Total . | . . . . . . . . . . . . . Derelict Logs Recovered 3 | . . . . 1 . . . . . 2 . . Drone Launches . | . . . . . . . . . . . . . Drone Recoveries . | . . . . . . . . . . . . . Exploration | -11 -10 -10 -10 -9 -8 -8 -8 -8 -7 -7 -7 -6 ------------- Run | Scr Mat Min Exi Min Mat Gar Mat Gar Fac Low Low Fac Turns Passed 16586 | 98 674 152 890 1891 70 1032 2157 534 3066 1445 24 4553 Spaces Moved 8597 | 59 318 96 557 1112 52 682 1328 192 1686 719 17 1779 Core 173 | 15 . . . 76 . . . . . . . 82 Treads 5229 | 44 318 96 557 419 . . 352 192 1686 395 . 1170 Legs 2744 | . . . . 295 52 682 975 . . 324 17 399 Wheels 323 | . . . . 322 . . 1 . . . . . Hover 128 | . . . . . . . . . . . . 128 Flight . | . . . . . . . . . . . . . Fastest Speed 50 | 50 160 160 160 90 120 120 110 145 145 150 150 150 Average Speed 164 | 132 160 160 160 141 120 120 130 145 153 192 150 228 Slowest Speed 1350 | 160 160 160 160 350 120 120 210 145 177 240 150 1350 Overloaded Moves . | . . . . . . . . . . . . . Propulsion Burnouts . | . . . . . . . . . . . . . Robots Hopped . | . . . . . . . . . . . . . Cave-ins Triggered 1 | . . . . 1 . . . . . . . . Exploration Rate (%) 43 | 4 38 24 92 86 6 55 79 34 34 79 6 27 Regions Visited 12 Branch Regions 5 Pre-discovered Areas 2 | . . . 1 . . . 1 . . . . . Known Exits Taken 10 | 1 1 1 1 1 1 . 1 . 1 1 1 . Unknown Exits Taken . | . . . . . . . . . . . . . Scrap Searched 3 | . . . . 1 . . . . . 2 . . Spaces Dug 5 | . . . . 5 . . . . . . . . Terrain Destroyed 361 | . . . . 117 . 29 42 . 3 5 . 165 Melee 5 | . . . . 5 . . . . . . . . Projectile 27 | . . . . 4 . 4 . . 3 5 . 11 AOE 329 | . . . . 108 . 25 42 . . . . 154 Terrain Rammed . | . . . . . . . . . . . . . Walls Destroyed . | . . . . . . . . . . . . . Machines Disabled . | . . . . . . . . . . . . . Actions | -11 -10 -10 -10 -9 -8 -8 -8 -8 -7 -7 -7 -6 --------- Run | Scr Mat Min Exi Min Mat Gar Mat Gar Fac Low Low Fac Total 10091 | 79 423 95 556 1332 60 794 1564 393 2004 744 16 2031 Wait 595 | . 52 . . 122 . . 47 173 155 . . 46 Move 8586 | 58 317 95 556 1111 52 681 1328 190 1685 718 16 1779 Hop . | . . . . . . . . . . . . . Pick Up 108 | 14 6 . . 8 3 10 27 1 20 1 . 18 Fast Attach 21 | . 1 . . 4 . . 2 . 2 5 . 7 Attach 75 | 7 1 . . 8 4 3 16 . 12 . . 24 Detach 4 | . . . . . . . . . 1 . . 3 Swap 77 | . 4 . . 11 . 16 18 1 20 1 . 6 Drop 68 | . 6 . . 6 1 13 16 . 13 2 . 11 Fire 489 | . 32 . . 50 . 51 94 26 89 17 . 130 Melee 45 | . 4 . . 12 . . 15 2 5 . . 7 Ram . | . . . . . . . . . . . . . Kick . | . . . . . . . . . . . . . Crush 1 | . . . . . . . 1 . . . . . Escape Stasis 22 | . . . . . . 20 . . 2 . . . Rewire . | . . . . . . . . . . . . . Trap . | . . . . . . . . . . . . . Miscellaneous . | . . . . . . . . . . . . . Route ------- -11/Scrapyard -10/Materials (discovered 2 exits: *Min x2) -10/Mines -10/Exiles -9/Mines (discovered 2 exits: *Mat x2) -8/Materials -8/Garrison (discovered 2 exits: *Mat x2) -8/Materials (discovered 3 exits: *Fac x2 / Gar) -8/Garrison -7/Factory -7/Lower Caves -7/Lower Caves -6/Factory History --------- Turn | Location | Event 3 | -11/Scrapyard | Identified exit to Materials 3 | -11/Scrapyard | Discovered exit to Materials (range 15) 99 | -11/Scrapyard | Entered Materials 99 | -10/Materials | Evolved 1 slot: Utility x1 325 | -10/Materials | Build established: Hacker-Mutant 464 | -10/Materials | Identified exit to Mines 464 | -10/Materials | Discovered exit to Mines (range 15) 723 | -10/Materials | Discovered exit to Mines (range 16) 773 | -10/Materials | Entered Mines 914 | -10/Mines | Deemed a non-threat by the Exiles lab entrance 916 | -10/Mines | Identified exit to Exiles 916 | -10/Mines | Discovered exit to Exiles (range 5) 925 | -10/Mines | Entered Exiles 978 | -10/Exiles | Met 8R-AWN 1005 | -10/Exiles | Met EX-HEX 1074 | -10/Exiles | Met EX-BIN 1287 | -10/Exiles | Met EX-DEC 1305 | -10/Exiles | Learned location of Zion (-6) 1406 | -10/Exiles | Visited The Gauntlet 1786 | -10/Exiles | Identified exit to Mines 1786 | -10/Exiles | Discovered exit to Mines (range 11) 1815 | -10/Exiles | Entered Mines 1820 | -9/Mines | Met a Derelict bent on vengeance 2181 | -9/Mines | Assembled infested the area 2186 | -9/Mines | Assisted by a Guerilla fighting off Assembled 2259 | -9/Mines | Destroyed 7 combat bots 2383 | -9/Mines | Identified exit to Materials 3002 | -9/Mines | Crushed by falling debris 3033 | -9/Mines | Lost 5 parts (1p2n1u1w) 3515 | -9/Mines | Core integrity fell below 50% 3692 | -9/Mines | Discovered exit to Materials (range 3) 3706 | -9/Mines | Entered Materials 3706 | -8/Materials | Evolved 4 slots: Propulsion x2, Utility x2 3776 | -8/Materials | Identified exit to Garrison 3776 | -8/Materials | Entered Garrison 3810 | -8/Garrison | Triggered checkpoint 3897 | -8/Garrison | Garrison Relay disabled 3962 | -8/Garrison | Triggered checkpoint 4004 | -8/Garrison | Triggered checkpoint 4188 | -8/Garrison | Spotted B-75 Beast 4286 | -8/Garrison | Triggered checkpoint 4360 | -8/Garrison | Identified exit to Materials 4360 | -8/Garrison | Discovered exit to Materials (range 9) 4395 | -8/Garrison | Build established: Scavenger-Mutant 4415 | -8/Garrison | Destroyed B-75 Beast 4546 | -8/Garrison | Triggered checkpoint 4557 | -8/Garrison | Discovered exit to Materials (range 15) 4586 | -8/Garrison | Installed Relay Interface Framework 4658 | -8/Garrison | Triggered checkpoint 4704 | -8/Garrison | Garrison Relay disabled 4808 | -8/Garrison | Entered Materials 5706 | -8/Materials | Build established: Hacker-Mutant 5883 | -8/Materials | Identified exit to Factory 5883 | -8/Materials | Discovered exit to Factory (range 4) 6535 | -8/Materials | Discovered exit to Factory (range 9) 6540 | -8/Materials | Garrison activated, responded to threat 6965 | -8/Materials | Identified exit to Garrison 6965 | -8/Materials | Entered Garrison 6973 | -8/Garrison | Expanded RIF knowledge: Zone Cloak 7070 | -8/Garrison | Triggered checkpoint 7115 | -8/Garrison | Garrison Relay disabled 7268 | -8/Garrison | Triggered checkpoint 7358 | -8/Garrison | Discovered exit to Factory (range 10) 7499 | -8/Garrison | Entered Factory 7499 | -7/Factory | Evolved 2 slots: Utility x2 8048 | -7/Factory | Allied Derelicts emerged from ambush trap array 10482 | -7/Factory | Identified exit to Lower Caves 10482 | -7/Factory | Discovered exit to Lower Caves (range 10) 10565 | -7/Factory | Entered Lower Caves 10614 | -7/Lower Caves | Attracted the attention of an 0b10 outpost 10809 | -7/Lower Caves | Identified exit to Lower Caves 11039 | -7/Lower Caves | Learned Factory emergency access door positions 11827 | -7/Lower Caves | Build established: Scavenger-Mutant 12010 | -7/Lower Caves | Entered another Lower Caves area 12019 | -7/Lower Caves | Identified exit to Factory 12019 | -7/Lower Caves | Discovered exit to Factory (range 12) 12034 | -7/Lower Caves | Entered Factory 12034 | -6/Factory | Evolved 2 slots: Power x1, Utility x1 12468 | -6/Factory | Build established: Hacker-Mutant 12770 | -6/Factory | Build established: Hauler-Mutant 13589 | -6/Factory | Lost 3 parts (1u2w) 13857 | -6/Factory | Lost 5 parts (2n2u1w) 14483 | -6/Factory | Lost 3 parts (2n1w) 15284 | -6/Factory | Build established: Hauler-Skirmisher 16357 | -6/Factory | Lost 4 parts (1p1n1u1w) 16587 | -6/Factory | Self-destructed Last Messages --------------- squad. 16536_ G-50 Soldier Carbon-fiber Leg severed. 16542_ G-50 Soldier Hvy. Laser severed. 16544_ G-50 Soldier destroyed. 16549_ R-10 Processor collects Hvy. Laser. 16555_ G-50 Soldier destroyed. 16559_ K-01 Serf collects debris. 16567_ Acquired 51 matter. 16569_ K-01 Serf collects debris. 16569_ A-15 Conveyor calls for reinforcements. 16569_ ALERT: Hostile activity reported, dispatching reinforcements to area. 16570_ Mic. Nuclear Core destroyed. 16570_ A-15 Conveyor destroyed. 16572_ K-01 Serf collects debris. 16573_ R-10 Processor collects Faulty Hvy. EM Shotgun. 16574_ K-01 Serf collects debris. 16576_ R-10 Processor collects Prototype Hover Unit. 16578_ K-01 Serf collects debris. 16580_ R-10 Processor collects Hvy. EM Shotgun. 16582_ K-01 Serf collects debris. Map ----- +----------------------------------------------------+ | ##???????## !#???? # #???????? | | #?????????# """""""""%#??""" # #???????? | | #??#??#???# !#! """ # #???????? | | ##???#???## """"""""" + """ # #???????? | | #???##???## # # #???????? | | #??????#?## """"""""" # ?""" # #???????? | | ##?#??#???# ? #????" # #???????? | | ###??????#????##########? ?""?? ????????? | | #####?##?#######??##???#??? ????? ????????? | | #?#??#?#####???#?#?##??#??#???????????????????? | | #?##?##???#?#??#???#??#?###???????????????????? | | #################?#?#??#?????#? ??????????????? | | ####### #?? ? ???????????????????? | | ## #? ??"?? ""? ?#???????????????? | | ## """ """ # ?"" """ ##?? ????????????? | | ## """ """ # ???"?""" ##???????????????? | | ## ## """ """ # ?? ? +? ?? ???????????? | | ## ## # ? ?"?" """ ##???????????????? | | # # #?? ???? """ ###? ????????????? | | # # #?? "?" """ ####?????????????? | | # # # ? ? #????????????????? | | # ! # "" "" # ?? ??#??????????????? | | # # ""S"" #? ????#??????????????? | | ### ### =="""" #? ? ? ??##?#???????????? | | ### ########+#############u#########?????????????? | | ?## #?### % !%R @ %== #?????????????? | | #?# ##### g = k k[! #?????????????? | | #?# ###?# g g =u Rk + ???? | | ### ##### # ?? | | w "#????????? | | ###########+##############+### """""" "#????????? | | ###### ## ?? # """""" "#????????? | | #""" ## ? ??? ? """"""???????????? | | #"R """""" #? ? ? #? """""????????????? | | ! #""" """""" ## ?? ?? ? ????????????? | | + "%""""""" #? ? ?#?? ? ????????????? | | """" # " """""" #??? #????? ???????????? | | """" # #? ? ? #?? ??? ???????????? | | """" # """""" ## ? ? ??# ? ? ??!???????????? | | """" # """""" ##? ? ? ? ? ?????! ??????????? | | """" # """""" #? ?? ? ? ? ? ????? ??????????? | | """" # %% """"" #? ? ?? ?????????????????? | | """" # ## ? ????? ??? ??????????????? | | ############### ? ?? #???????????????????? | | " ##### ?? + ??? ? ##???#??????????????? | | " ##?## ? ? ??? ? ???#???? ? ????????????? | | " ##?## ? ? ??? ?????? ?? ???????????????? | | #########? ?? ? ? #???????##? ????????????????? | | #?##???########+?###???#? #??????????????????????? | | ? ??? #?#?##? ? ?? ? ? ?????"?"???????????????? | +----------------------------------------------------+ Best States ------------- Heat Dissipation 70 Energy Generation 31 Energy Capacity 590 Matter Stores 450 Matter Capacity 450 Sight Range 22 Robot Scan Range 13 Terrain Scan Range 24 Terrain Scan Density 10 ECM Strength 1 Armor Coverage 375 Resistance: KI 35 Resistance: TH 35 Resistance: EX 35 Resistance: EM 35 Resistance: I 35 Resistance: S 35 Resistance: P 35 Evasion (%) 50 Targeting Accuracy 8 Recoil Reduction 4 Particle Charging 15 Offensive Hacking 30 Relay Coupler Types 37 Relay Coupler Value 2 Item Schematics ----------------- Datajack | -8/Materials | Hacked Lrg. Storage Unit | -8/Materials | Scanalyzed Lrn. Terrain Scanner | -7/Factory | Scanalyzed Lyr. Medium Armor Plating | -7/Factory | Hacked Imp. Recalibrator | -7/Factory | Hacked Imp. Hacking Suite | -6/Factory | Hacked Imp. Sensor Array | -6/Factory | Scanalyzed Robot Schematics ------------------ None Fabricated ------------ Nothing Alien Tech Used ----------------- None Achievements -------------- Brute Force Infiltrator Challenges ------------ None Game ------ Seed GuidedRiotBoregun Manual? 0 Play Time 03:06:08 Cumulative 72.8 hours Start 2020.09.19 @ 21:18:12 End 2020.09.20 @ 18:33:03 Sessions 3 Manual Loads 0 Difficulty Explorer Special Mode None Game No. 120 Rogue 102 Adventurer 0 Explorer 18 Win Type - Total 0 Types 0/0/0/0/0/0/0/0/0 Lore% 20 Gallery% 43 Achievement% 32 Wizard Run 0 Options --------- ASCII 0 Keyboard 0 Movement Mouse Keybinds 0 Fullscreen 1 Font 12/Smallcaps Map View 83x54 Tactical HUD 1 Map Filters NONE Filters NONE Steam 1 RUN: d64d63f4-3977-4cc0-891d-64b55fb8b3d6